[Event "Titled Tuesday Blitz June 20 Late 2023"]
[White "Ionescu, Mihai"]
[Black "Domingo Nunez, Ruben"]
[WhiteFideId "1202499"]
[BlackFideId "22245570"]
[WhiteElo "2279"]
[BlackElo "2404"]
[Result "0-1"]
[Round "6"]
[TimeControl "180+2"]
[Date "2023.06.20"]
[WhiteClock "0:00:11"]
[BlackClock "0:00:14"]
[Board "99"]

1. Nf3 {[%clk 0:03:00]}  b5 {[%clk 0:02:57]} 2. e4 {[%clk 0:03:00]}  Bb7 {[%clk 0:02:58]} 3. Bxb5 {[%clk 0:03:00]}  Bxe4 {[%clk 0:02:58]} 4. O-O {[%clk 0:02:59]}  Nf6 {[%clk 0:02:58]} 5. d4 {[%clk 0:03:00]}  e6 {[%clk 0:02:57]} 6. c4 {[%clk 0:03:00]}  a6 {[%clk 0:02:53]} 7. Ba4 {[%clk 0:02:59]}  c5 {[%clk 0:02:53]} 8. Nc3 {[%clk 0:02:52]}  Bb7 {[%clk 0:02:43]} 9. d5 {[%clk 0:02:50]}  Qb6 {[%clk 0:02:32]} 10. b3 {[%clk 0:02:36]}  Be7 {[%clk 0:02:32]} 11. Bf4 {[%clk 0:02:35]}  O-O {[%clk 0:02:32]} 12. Qd2 {[%clk 0:02:29]}  exd5 {[%clk 0:02:29]} 13. cxd5 {[%clk 0:02:28]}  Bd6 {[%clk 0:01:51]} 14. Bg5 {[%clk 0:02:22]}  Bc7 {[%clk 0:01:50]} 15. Rad1 {[%clk 0:02:17]}  Qd6 {[%clk 0:01:47]} 16. Rfe1 {[%clk 0:02:10]}  Ba5 {[%clk 0:01:19]} 17. Bxf6 {[%clk 0:01:54]}  Qxf6 {[%clk 0:01:16]} 18. Ne4 {[%clk 0:01:52]}  Qb6 {[%clk 0:01:17]} 19. Nc3 {[%clk 0:01:46]}  Qb4 {[%clk 0:01:02]} 20. Re3 {[%clk 0:01:36]}  c4 {[%clk 0:00:56]} 21. Ne5 {[%clk 0:01:31]}  cxb3 {[%clk 0:00:54]} 22. Bxb3 {[%clk 0:01:28]}  d6 {[%clk 0:00:50]} 23. Nc4 {[%clk 0:01:19]}  Nd7 {[%clk 0:00:44]} 24. Rg3 {[%clk 0:01:12]}  Nc5 {[%clk 0:00:33]} 25. Qg5 {[%clk 0:01:05]}  g6 {[%clk 0:00:31]} 26. Nxd6 {[%clk 0:00:48]}  Nxb3 {[%clk 0:00:24]} 27. Nxb7 {[%clk 0:00:47]}  Qxb7 {[%clk 0:00:21]} 28. axb3 {[%clk 0:00:46]}  Qxb3 {[%clk 0:00:22]} 29. Rdd3 {[%clk 0:00:34]}  Bxc3 {[%clk 0:00:20]} 30. h4 {[%clk 0:00:28]}  Qb1+ {[%clk 0:00:19]} 31. Kh2 {[%clk 0:00:28]}  Bg7 {[%clk 0:00:20]} 32. h5 {[%clk 0:00:26]}  Rad8 {[%clk 0:00:17]} 33. h6 {[%clk 0:00:25]}  Bh8 {[%clk 0:00:18]} 34. d6 {[%clk 0:00:25]}  Qb5 {[%clk 0:00:17]} 35. Qe3 {[%clk 0:00:20]}  Qh5+ {[%clk 0:00:16]} 36. Rh3 {[%clk 0:00:19]}  Qf5 {[%clk 0:00:16]} 37. Rf3 {[%clk 0:00:18]}  Qe5+ {[%clk 0:00:15]} 38. Qxe5 {[%clk 0:00:16]}  Bxe5+ {[%clk 0:00:16]} 39. g3 {[%clk 0:00:16]}  Rxd6 {[%clk 0:00:15]} 40. Rde3 {[%clk 0:00:15]}  Bd4 {[%clk 0:00:13]} 41. Re4 {[%clk 0:00:15]}  Bc5 {[%clk 0:00:14]} 42. Rc4 {[%clk 0:00:15]}  Bb6 {[%clk 0:00:13]} 43. Rb3 {[%clk 0:00:15]}  Bxf2 {[%clk 0:00:13]} 44. Kg2 {[%clk 0:00:14]}  Be1 {[%clk 0:00:13]} 45. Rb1 {[%clk 0:00:14]}  Bd2 {[%clk 0:00:13]} 46. Rd1 {[%clk 0:00:14]}  Bf4 {[%clk 0:00:13]} 47. Rdc1 {[%clk 0:00:11]}  Bxc1 {[%clk 0:00:14]} 0-1


[Site "https://www.chess.com"]

[Event "Titled Tuesday Blitz June 20 Late 2023"]
[White "Sokolov, Andrei"]
[Black "Janaszak, Dawid"]
[WhiteFideId "11600306"]
[BlackFideId "1119206"]
[WhiteElo "2473"]
[BlackElo "2220"]
[Result "0-1"]
[Round "6"]
[TimeControl "180+2"]
[Date "2023.06.20"]
[WhiteClock "0:00:03"]
[BlackClock "0:00:47"]
[Board "101"]

1. d4 {[%clk 0:03:00]}  d5 {[%clk 0:02:56]} 2. c4 {[%clk 0:03:00]}  e6 {[%clk 0:02:56]} 3. g3 {[%clk 0:02:58]}  c5 {[%clk 0:02:56]} 4. Nf3 {[%clk 0:02:56]}  Nc6 {[%clk 0:02:56]} 5. Bg2 {[%clk 0:02:55]}  Nf6 {[%clk 0:02:56]} 6. O-O {[%clk 0:02:55]}  Be7 {[%clk 0:02:57]} 7. cxd5 {[%clk 0:02:50]}  exd5 {[%clk 0:02:56]} 8. e3 {[%clk 0:02:50]}  O-O {[%clk 0:02:55]} 9. Nc3 {[%clk 0:02:49]}  c4 {[%clk 0:02:50]} 10. b3 {[%clk 0:02:46]}  cxb3 {[%clk 0:02:50]} 11. Qxb3 {[%clk 0:02:41]}  Na5 {[%clk 0:02:46]} 12. Qc2 {[%clk 0:02:30]}  g6 {[%clk 0:02:45]} 13. Ne5 {[%clk 0:02:22]}  Bf5 {[%clk 0:02:45]} 14. Qe2 {[%clk 0:02:12]}  Rc8 {[%clk 0:02:44]} 15. Bb2 {[%clk 0:02:12]}  Qb6 {[%clk 0:02:37]} 16. g4 {[%clk 0:01:55]}  Be6 {[%clk 0:02:32]} 17. Rab1 {[%clk 0:01:48]}  Qd8 {[%clk 0:02:21]} 18. Rfc1 {[%clk 0:01:29]}  a6 {[%clk 0:02:18]} 19. Na4 {[%clk 0:01:20]}  Nc4 {[%clk 0:02:09]} 20. Nxc4 {[%clk 0:01:14]}  dxc4 {[%clk 0:02:10]} 21. Bxb7 {[%clk 0:01:10]}  Bxg4 {[%clk 0:02:07]} 22. f3 {[%clk 0:01:07]}  Rb8 {[%clk 0:02:06]} 23. Bxa6 {[%clk 0:00:52]}  Bf5 {[%clk 0:02:02]} 24. e4 {[%clk 0:00:51]}  Qa5 {[%clk 0:02:02]} 25. Bxc4 {[%clk 0:00:38]}  Qxa4 {[%clk 0:02:01]} 26. exf5 {[%clk 0:00:36]}  Bd6 {[%clk 0:01:57]} 27. Qg2 {[%clk 0:00:28]}  Kg7 {[%clk 0:01:36]} 28. Bb3 {[%clk 0:00:20]}  Qa6 {[%clk 0:01:31]} 29. d5 {[%clk 0:00:19]}  Rbe8 {[%clk 0:01:21]} 30. Rc6 {[%clk 0:00:19]}  Qa7+ {[%clk 0:01:18]} 31. Kh1 {[%clk 0:00:18]}  Be5 {[%clk 0:01:19]} 32. Bxe5 {[%clk 0:00:16]}  Rxe5 {[%clk 0:01:20]} 33. fxg6 {[%clk 0:00:14]}  fxg6 {[%clk 0:01:17]} 34. Qb2 {[%clk 0:00:14]}  Qe3 {[%clk 0:01:17]} 35. Qg2 {[%clk 0:00:12]}  Nh5 {[%clk 0:01:14]} 36. Rc7+ {[%clk 0:00:12]}  Kh6 {[%clk 0:01:14]} 37. Rg1 {[%clk 0:00:10]}  Rf6 {[%clk 0:01:03]} 38. d6 {[%clk 0:00:09]}  Nf4 {[%clk 0:01:01]} 39. Qg3 {[%clk 0:00:06]}  Ne2 {[%clk 0:00:52]} 40. Qh3+ {[%clk 0:00:06]}  Rh5 {[%clk 0:00:53]} 41. Rxh7+ {[%clk 0:00:06]}  Kxh7 {[%clk 0:00:51]} 42. Qd7+ {[%clk 0:00:07]}  Kh6 {[%clk 0:00:50]} 43. Rxg6+ {[%clk 0:00:03]}  Rxg6 {[%clk 0:00:47]} 44. Qe8 {[%clk 0:00:03]}  Qg1# {[%clk 0:00:47]} 0-1


[Site "https://www.chess.com"]

[Event "Titled Tuesday Blitz June 20 Late 2023"]
[White "Pinheiro, Iung Alicio de O."]
[Black "dodoucb"]
[WhiteFideId "2104350"]
[WhiteElo "2283"]
[BlackElo "2408"]
[Result "1-0"]
[Round "6"]
[TimeControl "180+2"]
[Date "2023.06.20"]
[WhiteClock "0:00:08"]
[BlackClock "0:00:00"]
[Board "103"]

1. d4 {[%clk 0:03:00]}  Nf6 {[%clk 0:02:08]} 2. c4 {[%clk 0:02:56]}  g6 {[%clk 0:02:06]} 3. Nc3 {[%clk 0:02:55]}  Bg7 {[%clk 0:02:06]} 4. e4 {[%clk 0:02:55]}  d6 {[%clk 0:02:06]} 5. Be2 {[%clk 0:02:46]}  O-O {[%clk 0:02:06]} 6. Be3 {[%clk 0:02:46]}  Nc6 {[%clk 0:01:49]} 7. d5 {[%clk 0:02:28]}  Ne5 {[%clk 0:01:48]} 8. h3 {[%clk 0:02:05]}  e6 {[%clk 0:01:27]} 9. Nf3 {[%clk 0:01:45]}  Nxf3+ {[%clk 0:01:03]} 10. Bxf3 {[%clk 0:01:45]}  e5 {[%clk 0:00:56]} 11. g4 {[%clk 0:01:40]}  a6 {[%clk 0:00:49]} 12. g5 {[%clk 0:01:32]}  Nd7 {[%clk 0:00:29]} 13. Bg4 {[%clk 0:01:28]}  f5 {[%clk 0:00:28]} 14. gxf6 {[%clk 0:01:25]}  Nxf6 {[%clk 0:00:26]} 15. Qe2 {[%clk 0:01:13]}  Bd7 {[%clk 0:00:17]} 16. O-O-O {[%clk 0:01:10]}  Qc8 {[%clk 0:00:17]} 17. Rdg1 {[%clk 0:01:09]}  Kh8 {[%clk 0:00:14]} 18. f3 {[%clk 0:00:54]}  b5 {[%clk 0:00:15]} 19. c5 {[%clk 0:00:54]}  c6 {[%clk 0:00:12]} 20. Kb1 {[%clk 0:00:30]}  cxd5 {[%clk 0:00:11]} 21. Bxd7 {[%clk 0:00:30]}  Nxd7 {[%clk 0:00:10]} 22. Nxd5 {[%clk 0:00:28]}  dxc5 {[%clk 0:00:06]} 23. h4 {[%clk 0:00:27]}  Nf6 {[%clk 0:00:06]} 24. Nb6 {[%clk 0:00:25]}  Qe6 {[%clk 0:00:05]} 25. Nxa8 {[%clk 0:00:24]}  Rxa8 {[%clk 0:00:05]} 26. Bxc5 {[%clk 0:00:25]}  Rc8 {[%clk 0:00:05]} 27. Rc1 {[%clk 0:00:24]}  Bh6 {[%clk 0:00:05]} 28. Be3 {[%clk 0:00:24]}  Rxc1+ {[%clk 0:00:05]} 29. Rxc1 {[%clk 0:00:23]}  Bxe3 {[%clk 0:00:05]} 30. Qxe3 {[%clk 0:00:24]}  Ne8 {[%clk 0:00:04]} 31. f4 {[%clk 0:00:18]}  Qe7 {[%clk 0:00:04]} 32. h5 {[%clk 0:00:17]}  exf4 {[%clk 0:00:02]} 33. Qxf4 {[%clk 0:00:17]}  g5 {[%clk 0:00:03]} 34. Qf5 {[%clk 0:00:17]}  h6 {[%clk 0:00:03]} 35. e5 {[%clk 0:00:16]}  Kg7 {[%clk 0:00:02]} 36. Qg6+ {[%clk 0:00:16]}  Kh8 {[%clk 0:00:01]} 37. Qxh6+ {[%clk 0:00:17]}  Qh7+ {[%clk 0:00:01]} 38. Qxh7+ {[%clk 0:00:16]}  Kxh7 {[%clk 0:00:02]} 39. Rc8 {[%clk 0:00:14]}  Ng7 {[%clk 0:00:02]} 40. Rc7 {[%clk 0:00:15]}  Kh6 {[%clk 0:00:02]} 41. Kc2 {[%clk 0:00:09]}  Nxh5 {[%clk 0:00:02]} 42. Kd3 {[%clk 0:00:07]}  Nf4+ {[%clk 0:00:01]} 43. Ke4 {[%clk 0:00:08]}  Ne6 {[%clk 0:00:00]} 44. Rc6 {[%clk 0:00:08]} 1-0


[Site "https://www.chess.com"]

[Event "Titled Tuesday Blitz June 20 Late 2023"]
[White "Perez, Maximiliano"]
[Black "Mazurkiewicz, Michal"]
[WhiteFideId "117234"]
[BlackFideId "1124943"]
[WhiteElo "2334"]
[BlackElo "2063"]
[Result "1-0"]
[Round "6"]
[TimeControl "180+2"]
[Date "2023.06.20"]
[WhiteClock "0:01:15"]
[BlackClock "0:00:00"]
[Board "105"]

1. e4 {[%clk 0:03:00]}  d6 {[%clk 0:02:58]} 2. d4 {[%clk 0:03:00]}  Nf6 {[%clk 0:02:58]} 3. Nc3 {[%clk 0:03:01]}  c6 {[%clk 0:02:59]} 4. Nf3 {[%clk 0:02:59]}  Bg4 {[%clk 0:02:59]} 5. Be2 {[%clk 0:03:00]}  e6 {[%clk 0:02:58]} 6. O-O {[%clk 0:03:00]}  d5 {[%clk 0:02:59]} 7. e5 {[%clk 0:03:00]}  Nfd7 {[%clk 0:02:59]} 8. Ne1 {[%clk 0:02:53]}  Bxe2 {[%clk 0:02:54]} 9. Nxe2 {[%clk 0:02:54]}  c5 {[%clk 0:02:55]} 10. c3 {[%clk 0:02:52]}  Nc6 {[%clk 0:02:55]} 11. f4 {[%clk 0:02:48]}  g6 {[%clk 0:02:55]} 12. Be3 {[%clk 0:02:44]}  Be7 {[%clk 0:02:53]} 13. Qd2 {[%clk 0:02:41]}  Qb6 {[%clk 0:02:49]} 14. Nf3 {[%clk 0:02:18]}  O-O {[%clk 0:02:42]} 15. g4 {[%clk 0:02:07]}  cxd4 {[%clk 0:02:41]} 16. cxd4 {[%clk 0:02:06]}  Rac8 {[%clk 0:02:39]} 17. f5 {[%clk 0:02:06]}  Bb4 {[%clk 0:02:31]} 18. Qd3 {[%clk 0:02:04]}  Be7 {[%clk 0:01:23]} 19. a3 {[%clk 0:01:45]}  a6 {[%clk 0:01:13]} 20. f6 {[%clk 0:01:44]}  Bd8 {[%clk 0:01:13]} 21. Qd2 {[%clk 0:01:33]}  Re8 {[%clk 0:01:00]} 22. Bf2 {[%clk 0:01:25]}  Kh8 {[%clk 0:00:43]} 23. Qh6 {[%clk 0:01:16]}  Nxf6 {[%clk 0:00:00]} 24. Ng5 {[%clk 0:01:15]} 1-0


[Site "https://www.chess.com"]

[Event "Titled Tuesday Blitz June 20 Late 2023"]
[White "Bogaudinov, Rushan"]
[Black "Ismayil, Malak"]
[WhiteFideId "4129288"]
[BlackFideId "13412604"]
[WhiteElo "1967"]
[BlackElo "1868"]
[Result "1-0"]
[Round "6"]
[TimeControl "180+2"]
[Date "2023.06.20"]
[WhiteClock "0:00:29"]
[BlackClock "0:00:00"]
[Board "106"]

1. e4 {[%clk 0:03:00]}  e5 {[%clk 0:02:59]} 2. Nc3 {[%clk 0:03:00]}  Nc6 {[%clk 0:02:58]} 3. g3 {[%clk 0:02:59]}  Nf6 {[%clk 0:02:57]} 4. Bg2 {[%clk 0:02:58]}  Bc5 {[%clk 0:02:58]} 5. d3 {[%clk 0:02:53]}  d6 {[%clk 0:02:55]} 6. Na4 {[%clk 0:02:53]}  Bb6 {[%clk 0:02:55]} 7. Ne2 {[%clk 0:02:46]}  Be6 {[%clk 0:02:48]} 8. O-O {[%clk 0:02:45]}  Qe7 {[%clk 0:02:43]} 9. Nxb6 {[%clk 0:02:42]}  axb6 {[%clk 0:02:43]} 10. d4 {[%clk 0:02:42]}  exd4 {[%clk 0:02:39]} 11. Nxd4 {[%clk 0:02:42]}  Nxd4 {[%clk 0:02:39]} 12. Qxd4 {[%clk 0:02:42]}  h6 {[%clk 0:02:39]} 13. e5 {[%clk 0:02:36]}  dxe5 {[%clk 0:02:37]} 14. Qxe5 {[%clk 0:02:36]}  c6 {[%clk 0:02:26]} 15. a3 {[%clk 0:02:30]}  O-O {[%clk 0:02:23]} 16. Be3 {[%clk 0:02:29]}  Nd7 {[%clk 0:02:12]} 17. Qc7 {[%clk 0:02:23]}  Qf6 {[%clk 0:01:54]} 18. c3 {[%clk 0:02:10]}  Ne5 {[%clk 0:01:34]} 19. Bd4 {[%clk 0:02:07]}  Nf3+ {[%clk 0:01:33]} 20. Kh1 {[%clk 0:02:02]}  Nxd4 {[%clk 0:01:32]} 21. cxd4 {[%clk 0:02:02]}  Qxd4 {[%clk 0:01:29]} 22. Qxb7 {[%clk 0:02:00]}  Qxb2 {[%clk 0:01:27]} 23. Qxc6 {[%clk 0:01:51]}  Rxa3 {[%clk 0:01:26]} 24. Rxa3 {[%clk 0:01:50]}  Qxa3 {[%clk 0:01:27]} 25. Qxb6 {[%clk 0:01:50]}  Rc8 {[%clk 0:01:21]} 26. Kg1 {[%clk 0:01:37]}  Qd3 {[%clk 0:01:15]} 27. h3 {[%clk 0:01:24]}  h5 {[%clk 0:01:14]} 28. Qa5 {[%clk 0:01:13]}  h4 {[%clk 0:01:12]} 29. Qe5 {[%clk 0:01:05]}  Qc2 {[%clk 0:00:56]} 30. gxh4 {[%clk 0:01:01]}  Qd3 {[%clk 0:00:50]} 31. Qg3 {[%clk 0:00:59]}  Qd2 {[%clk 0:00:47]} 32. Qe3 {[%clk 0:00:53]}  Qb2 {[%clk 0:00:41]} 33. Re1 {[%clk 0:00:49]}  Rc3 {[%clk 0:00:40]} 34. Qe5 {[%clk 0:00:47]}  Qb3 {[%clk 0:00:37]} 35. Re3 {[%clk 0:00:45]}  Qd1+ {[%clk 0:00:27]} 36. Re1 {[%clk 0:00:40]}  Qb3 {[%clk 0:00:27]} 37. Re3 {[%clk 0:00:39]}  Qd1+ {[%clk 0:00:26]} 38. Kh2 {[%clk 0:00:36]}  Rc1 {[%clk 0:00:26]} 39. Qb8+ {[%clk 0:00:32]}  Kh7 {[%clk 0:00:22]} 40. Kg3 {[%clk 0:00:30]}  Qc2 {[%clk 0:00:00]} 41. Be4+ {[%clk 0:00:29]} 1-0


[Site "https://www.chess.com"]

[Event "Titled Tuesday Blitz June 20 Late 2023"]
[White "Diaz Rosas, Julio Cesar"]
[Black "sebastianmarinp"]
[WhiteFideId "5105099"]
[WhiteElo "2284"]
[BlackElo "2367"]
[Result "0-1"]
[Round "6"]
[TimeControl "180+2"]
[Date "2023.06.20"]
[WhiteClock "0:00:13"]
[BlackClock "0:00:05"]
[Board "109"]

1. d4 {[%clk 0:02:55]}  Nf6 {[%clk 0:02:59]} 2. c4 {[%clk 0:02:55]}  e6 {[%clk 0:02:59]} 3. Nc3 {[%clk 0:02:55]}  Bb4 {[%clk 0:02:59]} 4. a3 {[%clk 0:02:55]}  Bxc3+ {[%clk 0:02:58]} 5. bxc3 {[%clk 0:02:56]}  b6 {[%clk 0:02:58]} 6. f3 {[%clk 0:02:55]}  Nc6 {[%clk 0:02:56]} 7. e4 {[%clk 0:02:54]}  Ba6 {[%clk 0:02:54]} 8. e5 {[%clk 0:02:49]}  Ng8 {[%clk 0:02:53]} 9. Bd3 {[%clk 0:02:43]}  Na5 {[%clk 0:02:51]} 10. Qe2 {[%clk 0:02:39]}  Ne7 {[%clk 0:02:48]} 11. f4 {[%clk 0:02:36]}  d5 {[%clk 0:02:28]} 12. cxd5 {[%clk 0:02:30]}  Bxd3 {[%clk 0:02:29]} 13. Qxd3 {[%clk 0:02:30]}  Qxd5 {[%clk 0:02:26]} 14. Nf3 {[%clk 0:02:30]}  O-O-O {[%clk 0:02:16]} 15. O-O {[%clk 0:02:26]}  Kb8 {[%clk 0:02:11]} 16. Be3 {[%clk 0:02:25]}  Nc4 {[%clk 0:02:06]} 17. Bf2 {[%clk 0:02:25]}  h6 {[%clk 0:01:51]} 18. a4 {[%clk 0:02:20]}  a6 {[%clk 0:01:37]} 19. Rfb1 {[%clk 0:02:07]}  Kb7 {[%clk 0:01:31]} 20. Nd2 {[%clk 0:02:00]}  Nxd2 {[%clk 0:01:26]} 21. Qxd2 {[%clk 0:02:00]}  g5 {[%clk 0:01:15]} 22. fxg5 {[%clk 0:01:49]}  hxg5 {[%clk 0:01:13]} 23. Qe2 {[%clk 0:01:48]}  Ng6 {[%clk 0:01:04]} 24. c4 {[%clk 0:01:41]}  Nf4 {[%clk 0:00:58]} 25. Qf1 {[%clk 0:01:41]}  Qe4 {[%clk 0:00:54]} 26. c5 {[%clk 0:01:22]}  Rxh2 {[%clk 0:00:40]} 27. Kxh2 {[%clk 0:01:05]}  Rh8+ {[%clk 0:00:39]} 28. Kg1 {[%clk 0:01:03]}  Ne2+ {[%clk 0:00:34]} 29. Qxe2 {[%clk 0:01:03]}  Qxe2 {[%clk 0:00:35]} 30. cxb6 {[%clk 0:01:01]}  c6 {[%clk 0:00:24]} 31. Rb3 {[%clk 0:00:47]}  g4 {[%clk 0:00:23]} 32. Rc1 {[%clk 0:00:43]}  Rh1+ {[%clk 0:00:12]} 33. Kxh1 {[%clk 0:00:42]}  Qxf2 {[%clk 0:00:13]} 34. Rbc3 {[%clk 0:00:40]}  Qh4+ {[%clk 0:00:11]} 35. Kg1 {[%clk 0:00:40]}  g3 {[%clk 0:00:11]} 36. d5 {[%clk 0:00:31]}  Qh2+ {[%clk 0:00:10]} 37. Kf1 {[%clk 0:00:30]}  Qh1+ {[%clk 0:00:11]} 38. Ke2 {[%clk 0:00:30]}  Qxg2+ {[%clk 0:00:11]} 39. Ke3 {[%clk 0:00:29]}  Qxd5 {[%clk 0:00:10]} 40. Rd3 {[%clk 0:00:27]}  Qxe5+ {[%clk 0:00:10]} 41. Kd2 {[%clk 0:00:24]}  Qf4+ {[%clk 0:00:08]} 42. Kc2 {[%clk 0:00:23]}  Qxa4+ {[%clk 0:00:08]} 43. Kd2 {[%clk 0:00:22]}  Qf4+ {[%clk 0:00:06]} 44. Kc2 {[%clk 0:00:23]}  Kxb6 {[%clk 0:00:06]} 45. Rb1+ {[%clk 0:00:21]}  Kc7 {[%clk 0:00:06]} 46. Rbd1 {[%clk 0:00:19]}  g2 {[%clk 0:00:06]} 47. Rd7+ {[%clk 0:00:16]}  Kb6 {[%clk 0:00:06]} 48. R7d2 {[%clk 0:00:13]}  Qf1 {[%clk 0:00:05]} 0-1


[Site "https://www.chess.com"]

[Event "Titled Tuesday Blitz June 20 Late 2023"]
[White "Bilan, Danila"]
[Black "Bueno, Alfeu Junior Varela"]
[WhiteFideId "24161918"]
[BlackFideId "2108879"]
[WhiteElo "2146"]
[BlackElo "2175"]
[Result "1-0"]
[Round "6"]
[TimeControl "180+2"]
[Date "2023.06.20"]
[WhiteClock "0:00:04"]
[BlackClock "0:00:00"]
[Board "110"]

1. d4 {[%clk 0:02:50]}  e6 {[%clk 0:02:59]} 2. Nf3 {[%clk 0:02:49]}  f5 {[%clk 0:02:59]} 3. g3 {[%clk 0:02:49]}  b6 {[%clk 0:02:59]} 4. Bg2 {[%clk 0:02:50]}  Bb7 {[%clk 0:03:00]} 5. O-O {[%clk 0:02:51]}  Nf6 {[%clk 0:03:00]} 6. c4 {[%clk 0:02:51]}  Be7 {[%clk 0:03:01]} 7. Nc3 {[%clk 0:02:52]}  Ne4 {[%clk 0:03:01]} 8. Qc2 {[%clk 0:02:51]}  Nxc3 {[%clk 0:03:01]} 9. Qxc3 {[%clk 0:02:52]}  Bf6 {[%clk 0:03:02]} 10. Bf4 {[%clk 0:02:50]}  O-O {[%clk 0:03:02]} 11. Qd2 {[%clk 0:02:48]}  d6 {[%clk 0:02:54]} 12. Rac1 {[%clk 0:02:34]}  Qe8 {[%clk 0:02:09]} 13. d5 {[%clk 0:02:20]}  e5 {[%clk 0:02:07]} 14. Bg5 {[%clk 0:02:20]}  Nd7 {[%clk 0:01:41]} 15. b4 {[%clk 0:02:10]}  h6 {[%clk 0:01:31]} 16. Bxf6 {[%clk 0:02:08]}  Nxf6 {[%clk 0:01:32]} 17. Qc2 {[%clk 0:01:59]}  Qh5 {[%clk 0:01:27]} 18. Nh4 {[%clk 0:01:54]}  Bc8 {[%clk 0:01:06]} 19. c5 {[%clk 0:01:48]}  f4 {[%clk 0:01:04]} 20. cxd6 {[%clk 0:01:39]}  cxd6 {[%clk 0:01:04]} 21. Qc6 {[%clk 0:01:11]}  Bg4 {[%clk 0:01:04]} 22. Qxd6 {[%clk 0:01:04]}  Bxe2 {[%clk 0:00:58]} 23. Rfe1 {[%clk 0:01:00]}  Rae8 {[%clk 0:00:54]} 24. Rc7 {[%clk 0:00:50]}  fxg3 {[%clk 0:00:49]} 25. hxg3 {[%clk 0:00:47]}  e4 {[%clk 0:00:34]} 26. Bh3 {[%clk 0:00:38]}  Bg4 {[%clk 0:00:19]} 27. Bg2 {[%clk 0:00:22]}  g5 {[%clk 0:00:19]} 28. Bxe4 {[%clk 0:00:10]}  Nxe4 {[%clk 0:00:10]} 29. Qg6+ {[%clk 0:00:06]}  Qxg6 {[%clk 0:00:09]} 30. Nxg6 {[%clk 0:00:07]}  Rf7 {[%clk 0:00:05]} 31. Rc6 {[%clk 0:00:05]}  Bd7 {[%clk 0:00:00]} 32. Rc2 {[%clk 0:00:04]} 1-0


[Site "https://www.chess.com"]

[Event "Titled Tuesday Blitz June 20 Late 2023"]
[White "Rian, Kapriaga"]
[Black "Delorme, Axel"]
[WhiteFideId "7103263"]
[BlackFideId "632023"]
[WhiteElo "2345"]
[BlackElo "2478"]
[Result "0-1"]
[Round "6"]
[TimeControl "180+2"]
[Date "2023.06.20"]
[WhiteClock "0:00:00"]
[BlackClock "0:00:06"]
[Board "112"]

1. d4 {[%clk 0:03:00]}  d5 {[%clk 0:02:59]} 2. c4 {[%clk 0:02:58]}  e6 {[%clk 0:02:59]} 3. e3 {[%clk 0:02:57]}  f5 {[%clk 0:02:55]} 4. Nc3 {[%clk 0:02:54]}  Nf6 {[%clk 0:02:55]} 5. h3 {[%clk 0:02:51]}  c6 {[%clk 0:02:55]} 6. g4 {[%clk 0:02:50]}  Na6 {[%clk 0:02:33]} 7. Nf3 {[%clk 0:02:40]}  Nc7 {[%clk 0:02:22]} 8. Ne5 {[%clk 0:02:39]}  g6 {[%clk 0:02:16]} 9. h4 {[%clk 0:02:06]}  fxg4 {[%clk 0:02:07]} 10. Nxg4 {[%clk 0:02:04]}  Nxg4 {[%clk 0:02:06]} 11. Qxg4 {[%clk 0:02:04]}  e5 {[%clk 0:02:02]} 12. Qg3 {[%clk 0:02:04]}  e4 {[%clk 0:01:58]} 13. Bd2 {[%clk 0:01:53]}  Bd6 {[%clk 0:01:56]} 14. Qg1 {[%clk 0:01:50]}  Be6 {[%clk 0:01:48]} 15. c5 {[%clk 0:01:48]}  Be7 {[%clk 0:01:46]} 16. O-O-O {[%clk 0:01:41]}  Bxh4 {[%clk 0:01:38]} 17. Be2 {[%clk 0:01:31]}  Qf6 {[%clk 0:01:33]} 18. Rf1 {[%clk 0:01:29]}  O-O-O {[%clk 0:01:25]} 19. f4 {[%clk 0:01:26]}  exf3 {[%clk 0:01:10]} 20. Bxf3 {[%clk 0:01:25]}  Qe7 {[%clk 0:00:59]} 21. e4 {[%clk 0:01:23]}  dxe4 {[%clk 0:00:58]} 22. Nxe4 {[%clk 0:01:22]}  Nb5 {[%clk 0:00:49]} 23. Rxh4 {[%clk 0:00:49]}  Qxh4 {[%clk 0:00:45]} 24. Bg5 {[%clk 0:00:49]}  Qh3 {[%clk 0:00:42]} 25. Bxd8 {[%clk 0:00:47]}  Rxd8 {[%clk 0:00:42]} 26. Ng5 {[%clk 0:00:47]}  Qh6 {[%clk 0:00:26]} 27. Kb1 {[%clk 0:00:29]}  Bf5+ {[%clk 0:00:26]} 28. Ka1 {[%clk 0:00:29]}  Nxd4 {[%clk 0:00:25]} 29. Bg4 {[%clk 0:00:25]}  Kb8 {[%clk 0:00:13]} 30. Bxf5 {[%clk 0:00:24]}  Nxf5 {[%clk 0:00:14]} 31. Ne6 {[%clk 0:00:20]}  Re8 {[%clk 0:00:09]} 32. Re1 {[%clk 0:00:17]}  a6 {[%clk 0:00:06]} 33. Qf2 {[%clk 0:00:15]}  Ng7 {[%clk 0:00:02]} 34. Qg3+ {[%clk 0:00:11]}  Ka7 {[%clk 0:00:02]} 35. Nxg7 {[%clk 0:00:07]}  Rxe1+ {[%clk 0:00:03]} 36. Qxe1 {[%clk 0:00:07]}  Qxg7 {[%clk 0:00:04]} 37. Qa5 {[%clk 0:00:06]}  Qf8 {[%clk 0:00:03]} 38. a4 {[%clk 0:00:05]}  g5 {[%clk 0:00:02]} 39. b4 {[%clk 0:00:04]}  g4 {[%clk 0:00:03]} 40. b5 {[%clk 0:00:05]}  cxb5 {[%clk 0:00:02]} 41. axb5 {[%clk 0:00:05]}  Qxc5 {[%clk 0:00:03]} 42. b6+ {[%clk 0:00:03]}  Qxb6 {[%clk 0:00:03]} 43. Qg5 {[%clk 0:00:03]}  Qd4+ {[%clk 0:00:01]} 44. Ka2 {[%clk 0:00:03]}  Qb6 {[%clk 0:00:01]} 45. Ka3 {[%clk 0:00:03]}  Qe6 {[%clk 0:00:02]} 46. Kb2 {[%clk 0:00:02]}  Ka8 {[%clk 0:00:02]} 47. Ka1 {[%clk 0:00:03]}  Qb6 {[%clk 0:00:03]} 48. Qg8+ {[%clk 0:00:03]}  Ka7 {[%clk 0:00:03]} 49. Qxg4 {[%clk 0:00:04]}  a5 {[%clk 0:00:03]} 50. Qd4 {[%clk 0:00:04]}  Qxd4+ {[%clk 0:00:02]} 51. Ka2 {[%clk 0:00:04]}  Qb4 {[%clk 0:00:02]} 52. Ka1 {[%clk 0:00:04]}  h5 {[%clk 0:00:03]} 53. Ka2 {[%clk 0:00:04]}  h4 {[%clk 0:00:04]} 54. Ka1 {[%clk 0:00:05]}  h3 {[%clk 0:00:05]} 55. Ka2 {[%clk 0:00:00]}  h2 {[%clk 0:00:06]} 0-1


[Site "https://www.chess.com"]